[Event "45th National Sub Junior 2019"]
[Site "Tiruchengode"]
[Date "2019.07.11"]
[Round "4.5"]
[White "Kushagra Mohan"]
[Black "Anadkat Kartavya"]
[Result "1/2-1/2"]
[ECO "C63"]
[WhiteElo "2250"]
[BlackElo "1941"]
[Annotator "NA"]
[PlyCount "110"]
[EventDate "2019.07.09"]
[EventCountry "IND"]
[SourceTitle "playchess.com"]
[Source "ChessBase"]
[SourceQuality "1"]
[TimeControl "5400+30"]

1. e4 {[%emt 0:00:00]} e5 {[%emt 0:00:00]} 2. Nf3 {[%emt 0:00:00]} Nc6 {[%emt 0:00:00]} 3. Bb5 {[%emt 0:00:00]} f5 {[%emt 0:00:00]} 4. Nc3 {[%emt 0:00:11]} fxe4 {[%emt 0:00:00]} 5. Nxe4 {[%emt 0:00:04]} Nf6 {[%emt 0:00:00]} 6. Nxf6+ {[%emt 0:00:10]} Qxf6 {[%emt 0:00:03]} 7. Qe2 {[%emt 0:00:14]} Be7 {[%emt 0:00:07]} 8. Bxc6 {[%emt 0:00:10]} bxc6 {[%emt 0:00:06]} 9. Qxe5 {[%emt 0:02:46] C63: Ruy Lopez: Schliemann/Jaenisch Defence} c5 {[%emt 0:00:06]} (9... d6 10. Qxf6 Bxf6 11. d4 O-O 12. Be3 Bg4 13. O-O-O Be7 14. Rd3 Bxf3 15. gxf3 Rxf3 16. Rc3 c5 17. dxc5 dxc5 {1-0 (29) Saric,I (2695)-Nihal,S (2576) St Petersburg 2018}) 10. O-O {[%emt 0:03:01]} Bb7 {[%emt 0:00:03]} 11. Re1 {[%emt 0:01:19]} Bxf3 {[%emt 0:00:05]} 12. Qxf6 {[%emt 0:00:04]} gxf6 {[%emt 0:00:04]} 13. gxf3 {[%emt 0:00:04]} Rg8+ $146 {[%emt 0:00:23]} ({Predecessor:} 13... Kf7 14. d3 Bd6 15. Re4 Rhg8+ 16. Kh1 Be5 {1-0 (28) Svoboda,V (2287)-Zwardon,V (2254) Kouty nad Desnou 2010}) 14. Kh1 {[%emt 0:00:50]} Kf7 {[%emt 0:00:01]} 15. d3 {[%emt 0:01:47]} Bd6 {[%emt 0:00:01]} 16. Bd2 {[%emt 0:00:48]} f5 {[%emt 0:08:09]} 17. b3 {[%emt 0:00:44]} Rae8 {[%emt 0:00:27]} 18. Rxe8 {[%emt 0:00:40]} Rxe8 {[%emt 0:00:08]} 19. Re1 {[%emt 0:00:08]} Rxe1+ {[%emt 0:03:01]} 20. Bxe1 {[%emt 0:00:17]} Kg6 {[%emt 0:02:45]} 21. Bd2 {[%emt 0:00:57]} Kh5 {[%emt 0:00:08]} 22. Kg2 {[%emt 0:00:25]} a6 {[%emt 0:02:31]} 23. Kh3 {[%emt 0:01:27]} Be5 {[%emt 0:01:59]} 24. f4 {[%emt 0:01:39]} Bf6 {[%emt 0:01:43]} 25. Ba5 {[%emt 0:04:54]} c6 {[%emt 0:03:16]} 26. Bc7 {[%emt 0:01:48]} Bh4 {[%emt 0:01:08]} 27. f3 {[%emt 0:01:34]} Be7 {[%emt 0:00:16]} 28. Be5 {[%emt 0:01:53]} Bf8 {[%emt 0:01:00]} 29. Bb2 {[%emt 0:00:15]} d5 $16 {[%emt 0:01:51]} 30. Bc3 {[%emt 0:13:41]} Bd6 {[%emt 0:03:01]} 31. Be5 {[%emt 0:05:55]} Be7 {[%emt 0:00:05]} 32. c3 {[%emt 0:08:37]} Kg6 {[%emt 0:03:29]} 33. Bc7 {[%emt 0:01:34]} Bf6 {[%emt 0:01:53]} 34. c4 {[%emt 0:00:13]} Be7 {[%emt 0:04:40]} 35. Ba5 {[%emt 0:01:33]} Kh5 {[%emt 0:02:15]} 36. Be1 {[%emt 0:00:16]} Kg6 {[%emt 0:03:11]} 37. Kg2 {[%emt 0:00:15]} Kf7 {[%emt 0:00:51]} 38. Kf1 {[%emt 0:00:14]} Ke6 {[%emt 0:01:56]} 39. Ke2 {[%emt 0:00:10]} Kd7 {[%emt 0:04:27]} 40. Kd1 {[%emt 0:00:03]} Kc8 {[%emt 0:09:37]} 41. Kc2 {[%emt 0:00:14]} Kb7 {[%emt 0:00:43]} 42. Kb2 {[%emt 0:00:37]} Bf6+ {[%emt 0:05:17]} 43. Ka3 {[%emt 0:04:04]} Be7 {[%emt 0:00:05]} 44. Ka4 {[%emt 0:00:13]} Kb6 {[%emt 0:00:35]} 45. Bf2 {[%emt 0:01:01]} Kb7 {[%emt 0:00:07]} 46. Be3 {[%emt 0:03:21]} Bd6 {[%emt 0:01:04]} 47. a3 {[%emt 0:03:13]} Be7 {[%emt 0:01:13]} 48. b4 {[%emt 0:00:26]} cxb4 {[%emt 0:00:50]} 49. axb4 {[%emt 0:00:03]} dxc4 {[%emt 0:01:06]} 50. dxc4 {[%emt 0:00:02]} Kc8 {[%emt 0:11:22]} 51. Ka5 {[%emt 0:02:29]} Kb7 {[%emt 0:00:08]} 52. b5 {[%emt 0:00:12]} axb5 {[%emt 0:00:52]} 53. cxb5 {[%emt 0:00:05]} cxb5 {[%emt 0:00:34]} 54. Kxb5 {[%emt 0:00:20]} Kc7 {[%emt 0:00:01]} 55. Bd4 {[%emt 0:07:52]} Kd7 {[%emt 0:00:26]} 1/2-1/2

[Event "45th National Sub Junior 2019"]
[Site "Tiruchengode"]
[Date "2019.07.11"]
[Round "4.6"]
[White "Ajay Karthikeyan"]
[Black "Praloy Sahoo"]
[Result "1/2-1/2"]
[ECO "A01"]
[WhiteElo "2216"]
[BlackElo "1905"]
[Annotator "NA"]
[PlyCount "70"]
[EventDate "2019.07.09"]
[EventCountry "IND"]
[SourceTitle "playchess.com"]
[Source "ChessBase"]
[SourceQuality "1"]
[TimeControl "5400+30"]

1. b3 {[%emt 0:00:00]} e5 {[%emt 0:02:13]} 2. Bb2 {[%emt 0:00:00]} Nc6 {[%emt 0:00:34]} 3. e3 {[%emt 0:00:00]} d6 {[%emt 0:02:34]} 4. c4 {[%emt 0:00:00]} Be7 {[%emt 0:04:22]} 5. Nf3 {[%emt 0:03:42]} f5 {[%emt 0:06:25]} 6. d4 {[%emt 0:04:21]} e4 {[%emt 0:05:36]} 7. Nfd2 {[%emt 0:02:29]} Nf6 {[%emt 0:00:21]} 8. Nc3 {[%emt 0:02:11]} O-O {[%emt 0:01:01]} 9. Be2 {[%emt 0:00:40]} d5 {[%emt 0:06:45]} 10. O-O {[%emt 0:11:18]} Be6 {[%emt 0:01:42]} 11. f3 $11 {[%emt 0:06:18]} Bb4 {[%emt 0:18:31]} 12. Nxd5 {[%emt 0:03:08]} Nxd5 {[%emt 0:00:56]} 13. cxd5 {[%emt 0:00:20]} Bxd5 {[%emt 0:06:54]} 14. fxe4 {[%emt 0:03:38]} fxe4 {[%emt 0:09:47]} 15. Rxf8+ {[%emt 0:03:32]} Qxf8 {[%emt 0:00:16]} 16. Bc4 {[%emt 0:00:19]} Bxc4 {[%emt 0:00:12]} 17. bxc4 {[%emt 0:02:38]} Bxd2 {[%emt 0:00:10]} 18. Qxd2 {[%emt 0:00:02]} Qe7 {[%emt 0:02:23]} 19. a3 {[%emt 0:11:37]} Rf8 {[%emt 0:02:15]} 20. Bc3 {[%emt 0:12:20]} Qg5 {[%emt 0:02:43]} 21. Qe2 {[%emt 0:08:45]} b6 {[%emt 0:24:50]} 22. Rf1 {[%emt 0:03:45]} Rxf1+ {[%emt 0:00:00]} 23. Kxf1 {[%emt 0:00:25]} Ne7 {[%emt 0:00:00]} 24. Be1 {[%emt 0:02:53]} Nf5 {[%emt 0:00:00]} 25. Bf2 {[%emt 0:00:01]} h5 {[%emt 0:00:00]} 26. c5 {[%emt 0:09:57]} bxc5 {[%emt 0:00:00]} 27. Qc4+ {[%emt 0:00:09]} Kh8 {[%emt 0:00:00]} 28. Qxc5 {[%emt 0:00:37]} Nxe3+ {[%emt 0:00:00]} 29. Bxe3 {[%emt 0:00:21]} Qxe3 {[%emt 0:00:00]} 30. Qxh5+ {[%emt 0:00:01]} Kg8 {[%emt 0:00:00]} 31. Qe8+ {[%emt 0:00:02]} Kh7 {[%emt 0:00:00]} 32. Qh5+ {[%emt 0:00:01]} Kg8 {[%emt 0:00:00]} 33. Qd5+ {[%emt 0:00:02]} Kh7 {[%emt 0:00:00]} 34. Qf5+ {[%emt 0:01:43]} Kg8 {[%emt 0:00:00]} 35. Qe6+ {[%emt 0:02:08]} Kh7 {[%emt 0:00:00]} 1/2-1/2

[Event "45th National Sub Junior 2019"]
[Site "Tiruchengode"]
[Date "2019.07.11"]
[Round "4.6"]
[White "Ajay Karthikeyan"]
[Black "Praloy Sahoo"]
[Result "*"]
[ECO "A01"]
[WhiteElo "2216"]
[BlackElo "1905"]
[Annotator "NA"]
[PlyCount "46"]
[EventDate "2019.07.09"]
[EventCountry "IND"]
[SourceTitle "playchess.com"]
[Source "ChessBase"]
[SourceQuality "1"]
[TimeControl "5400+30"]

1. b3 {[%emt 0:00:00]} e5 {[%emt 0:02:13]} 2. Bb2 {[%emt 0:00:00]} Nc6 {[%emt 0:00:34]} 3. e3 {[%emt 0:00:00]} d6 {[%emt 0:02:34]} 4. c4 {[%emt 0:00:00]} Be7 {[%emt 0:04:22]} 5. Nf3 {[%emt 0:03:42]} f5 {[%emt 0:06:25]} 6. d4 {[%emt 0:04:21]} e4 {[%emt 0:05:36]} 7. Nfd2 {[%emt 0:02:29]} Nf6 {[%emt 0:00:21]} 8. Nc3 {[%emt 1:23:28]} O-O {[%emt 0:01:01]} 9. Be2 {[%emt 0:00:40]} d5 {[%emt 0:06:45]} 10. O-O {[%emt 1:21:37]} Be6 {[%emt 0:01:42]} 11. f3 $11 {[%emt 0:06:18]} Bb4 {[%emt 0:18:31]} 12. Nxd5 {[%emt 0:03:08]} Nxd5 {[%emt 0:00:56]} 13. cxd5 {[%emt 0:00:20]} Bxd5 {[%emt 0:06:54]} 14. fxe4 {[%emt 0:03:38]} fxe4 {[%emt 0:09:47]} 15. Rxf8+ {[%emt 0:03:32]} Qxf8 {[%emt 0:00:16]} 16. Bc4 {[%emt 0:00:19]} Bxc4 {[%emt 0:00:12]} 17. bxc4 {[%emt 0:02:38]} Bxd2 {[%emt 0:00:10]} 18. Qxd2 {[%emt 0:00:02]} Qe7 {[%emt 0:02:23]} 19. a3 {[%emt 0:11:37]} Rf8 {[%emt 0:02:15]} 20. Bc3 {[%emt 0:12:20]} Qg5 {[%emt 0:02:43]} 21. Qe2 {[%emt 0:08:45]} b6 {[%emt 0:24:50]} 22. Rf1 {[%emt 0:03:45]} Rf7 {[%emt 0:00:30]} 23. Rf4 Rxf4 {[%emt 0:00:00]} *

[Event "45th National Sub Junior 2019"]
[Site "Tiruchengode"]
[Date "2019.07.11"]
[Round "4.7"]
[White "Abhinessh S"]
[Black "Nikhil Magizhnan"]
[Result "0-1"]
[ECO "C00"]
[WhiteElo "1898"]
[BlackElo "2164"]
[Annotator "NA"]
[PlyCount "52"]
[EventDate "2019.07.09"]
[EventCountry "IND"]
[SourceTitle "playchess.com"]
[Source "ChessBase"]
[SourceQuality "1"]
[TimeControl "5400+30"]

1. e4 {[%emt 0:00:00]} e6 {[%emt 0:00:00]} 2. c4 {[%emt 0:00:00]} d5 {[%emt 0:02:12]} 3. exd5 {[%emt 0:01:44]} exd5 {[%emt 0:00:03]} 4. cxd5 {[%emt 0:01:35]} Nf6 {[%emt 0:00:27]} 5. Nf3 {[%emt 0:02:03]} Nxd5 {[%emt 0:02:32]} 6. d4 {[%emt 0:06:07]} Bb4+ {[%emt 0:01:16]} 7. Bd2 {[%emt 0:01:08]} Qe7+ {[%emt 0:00:41]} 8. Qe2 {[%emt 0:15:15]} Be6 {[%emt 0:01:05]} 9. Nc3 {[%emt 0:01:52]} Bxc3 {[%emt 0:04:11]} (9... Nc6 $15) 10. bxc3 {[%emt 0:00:48]} O-O $11 {[%emt 0:01:06]} 11. g3 {[%emt 0:13:29]} Nb6 {[%emt 0:31:12]} 12. Bg2 {[%emt 0:05:36]} Qa3 {[%emt 0:00:42]} 13. O-O {[%emt 0:10:35]} Bc4 {[%emt 0:02:05]} 14. Qe4 {[%emt 0:03:04]} N8d7 {[%emt 0:14:18]} 15. Rfe1 {[%emt 0:03:27]} Bd5 {[%emt 0:00:52]} 16. Qf5 {[%emt 0:05:32]} Nf6 {[%emt 0:03:36]} 17. Bh6 {[%emt 0:03:24]} Be6 {[%emt 0:05:02]} 18. Qg5 {[%emt 0:04:42]} Ne8 {[%emt 0:00:33]} 19. Bh3 {[%emt 0:09:38]} Kh8 {[%emt 0:02:56]} 20. g4 {[%emt 0:08:47]} Qxc3 {[%emt 0:06:43]} 21. Qe7 {[%emt 0:00:40]} Nf6 {[%emt 0:03:16]} 22. Ng5 {[%emt 0:00:59]} Nbd5 {[%emt 0:01:09]} 23. Bxg7+ {[%emt 0:00:29]} Kxg7 {[%emt 0:00:25]} 24. Nxe6+ {[%emt 0:00:17]} Kg8 {[%emt 0:02:16]} 25. Qxf8+ {[%emt 0:00:41]} Rxf8 {[%emt 0:00:09]} 26. Nxf8 {[%emt 0:00:09]} Qxh3 {[%emt 0:00:33]} 0-1

[Event "45th National Sub Junior 2019"]
[Site "Tiruchengode"]
[Date "2019.07.11"]
[Round "4.8"]
[White "Shreyas Ghadi"]
[Black "Sanket Chakravarty"]
[Result "0-1"]
[ECO "E97"]
[WhiteElo "1709"]
[BlackElo "2107"]
[Annotator "NA"]
[PlyCount "98"]
[EventDate "2019.07.09"]
[EventCountry "IND"]
[SourceTitle "playchess.com"]
[Source "ChessBase"]
[SourceQuality "1"]
[TimeControl "5400+30"]

1. d4 {[%emt 0:00:00]} Nf6 {[%emt 0:00:00]} 2. c4 {[%emt 0:00:00]} g6 {[%emt 0:00:00]} 3. Nc3 {[%emt 0:00:00]} Bg7 {[%emt 0:00:00]} 4. e4 {[%emt 0:00:00]} d6 {[%emt 0:00:02]} 5. Nf3 {[%emt 0:00:00]} O-O {[%emt 0:00:14]} 6. Be2 {[%emt 0:00:00]} e5 {[%emt 0:00:17]} 7. O-O {[%emt 0:00:00]} Nc6 {[%emt 0:00:11]} 8. d5 {[%emt 0:00:04]} Ne7 {[%emt 0:00:16]} 9. b4 {[%emt 0:00:04]} a5 {[%emt 0:00:39]} 10. bxa5 {[%emt 0:00:06]} c5 {[%emt 0:07:48]} 11. a4 {[%emt 0:06:43]} Ne8 {[%emt 0:10:08]} 12. Rb1 {[%emt 0:06:34]} Rxa5 {[%emt 0:01:33]} 13. Bd2 {[%emt 0:03:18]} h6 {[%emt 0:04:43]} 14. Qc1 {[%emt 0:12:22]} Kh7 {[%emt 0:01:59]} 15. Qb2 {[%emt 0:08:13]} Ra6 $14 {[%emt 0:01:59]} 16. Ne1 {[%emt 0:06:36]} f5 {[%emt 0:01:21]} 17. f3 {[%emt 0:01:25]} f4 {[%emt 0:00:27]} 18. Nd3 {[%emt 0:00:06]} g5 {[%emt 0:01:15]} 19. Qc2 {[%emt 0:00:27]} Ng6 {[%emt 0:02:43]} 20. Rb2 {[%emt 0:04:54]} h5 {[%emt 0:01:53]} 21. h3 {[%emt 0:04:05]} Rf7 {[%emt 0:04:08]} 22. Rfb1 {[%emt 0:01:06]} Bf8 {[%emt 0:00:40]} 23. Nd1 {[%emt 0:03:10]} Kg8 {[%emt 0:07:29]} 24. a5 {[%emt 0:01:17]} Nf6 {[%emt 0:09:12]} 25. N1f2 {[%emt 0:01:21]} Rg7 {[%emt 0:06:18]} 26. Bc3 {[%emt 0:02:36]} Qe8 {[%emt 0:13:29]} 27. Rb6 {[%emt 0:01:46]} Rxb6 {[%emt 0:00:37]} 28. Rxb6 {[%emt 0:00:03]} Qe7 {[%emt 0:02:28]} 29. Qb2 {[%emt 0:02:44]} Ne8 {[%emt 0:06:33]} 30. Ne1 {[%emt 0:03:27]} Nh4 {[%emt 0:00:33]} 31. Qc2 {[%emt 0:03:33]} Nf6 {[%emt 0:01:54]} 32. Qd1 {[%emt 0:02:53]} Rg6 {[%emt 0:01:25]} 33. Ned3 {[%emt 0:01:04]} Qg7 {[%emt 0:02:42]} 34. Qb1 {[%emt 0:06:42]} g4 {[%emt 0:02:16]} 35. fxg4 {[%emt 0:01:04]} hxg4 {[%emt 0:00:21]} 36. hxg4 {[%emt 0:00:20]} Nxg4 {[%emt 0:00:51]} 37. Bxg4 {[%emt 0:06:22]} Bxg4 {[%emt 0:00:44]} 38. Nxf4 {[%emt 0:00:26]} Rf6 {[%emt 0:03:04]} 39. Rxb7 {[%emt 0:12:13]} Bd7 {[%emt 0:00:35]} 40. N2d3 {[%emt 0:00:59]} Qg3 {[%emt 0:04:25]} 41. Be1 {[%emt 0:00:53]} Nf3+ {[%emt 0:00:37]} 42. Kf1 {[%emt 0:00:01]} Nxe1 {[%emt 0:00:09]} 43. Qxe1 {[%emt 0:01:51]} Qxd3+ {[%emt 0:00:01]} 44. Kg1 {[%emt 0:00:09]} Qd4+ {[%emt 0:00:31]} 45. Qf2 {[%emt 0:01:01]} Qxf2+ {[%emt 0:00:05]} 46. Kxf2 {[%emt 0:00:01]} Rxf4+ {[%emt 0:00:01]} 47. Ke3 {[%emt 0:00:35]} Bc8 {[%emt 0:00:10]} 48. a6 {[%emt 0:00:09]} Rf1 {[%emt 0:00:22]} 49. Ra7 {[%emt 0:01:04]} Ra1 {[%emt 0:00:05]} 0-1

[Event "45th National Sub Junior 2019"]
[Site "Tiruchengode"]
[Date "2019.07.11"]
[Round "4.9"]
[White "Samant Aditya S"]
[Black "Rithvik Raja M"]
[Result "1-0"]
[ECO "B67"]
[WhiteElo "2296"]
[BlackElo "1766"]
[Annotator "ChessBase"]
[PlyCount "55"]
[EventDate "2019.07.09"]
[EventCountry "IND"]
[SourceTitle "playchess.com"]
[Source "ChessBase"]
[SourceQuality "1"]
[TimeControl "5400+30"]

1. e4 {[%emt 0:00:00]} c5 {[%emt 0:00:04]} 2. Nf3 {[%emt 0:00:00]} d6 {[%emt 0:00:42]} 3. d4 {[%emt 0:00:00]} cxd4 {[%emt 0:00:10]} 4. Nxd4 {[%emt 0:00:00]} Nf6 {[%emt 0:00:57]} 5. Nc3 {[%emt 0:00:04]} Nc6 {[%emt 0:00:29]} 6. Bg5 {[%emt 0:00:15]} e6 {[%emt 0:03:01]} 7. Qd2 {[%emt 0:00:12]} a6 {[%emt 0:00:21]} 8. O-O-O {[%emt 0:00:19]} Bd7 {[%emt 0:00:20]} 9. f4 {[%emt 0:00:09]} b5 {[%emt 0:00:24]} 10. Bxf6 {[%emt 0:00:27]} gxf6 {[%emt 0:00:21]} 11. Kb1 {[%emt 0:00:28]} Qb6 {[%emt 0:07:44]} 12. Nxc6 {[%emt 0:00:43]} Bxc6 {[%emt 0:00:26]} 13. f5 {[%emt 0:00:38]} b4 {[%emt 0:08:44]} 14. Ne2 {[%emt 0:00:14]} Bxe4 {[%emt 0:01:04]} 15. fxe6 {[%emt 0:00:43]} fxe6 {[%emt 0:00:32]} 16. Nf4 {[%emt 0:05:45]} d5 {[%emt 0:09:17]} 17. Bd3 {[%emt 0:00:47]} Bxd3 {[%emt 0:03:48]} 18. Qxd3 {[%emt 0:00:08]} O-O-O {[%emt 0:01:23]} 19. Rhe1 {[%emt 0:00:28]} Rd6 {[%emt 0:01:10]} 20. Rxe6 {[%emt 0:06:04]} Rxe6 {[%emt 0:05:43]} 21. Qf5 {[%emt 0:00:07]} Qe3 {[%emt 0:00:32]} 22. Nxe6 {[%emt 0:00:36]} Bh6 {[%emt 0:05:29]} 23. Qxd5 {[%emt 0:07:57]} Kb8 {[%emt 0:03:07]} 24. Qd6+ {[%emt 0:00:24]} Ka7 {[%emt 0:00:42]} 25. Qc7+ {[%emt 0:00:06]} Ka8 {[%emt 0:00:08]} 26. Nc5 {[%emt 0:00:27]} Rb8 {[%emt 0:01:54]} 27. Qc6+ {[%emt 0:00:08]} Ka7 {[%emt 0:00:04]} 28. Qxa6# {[%emt 0:00:05]} 1-0

[Event "45th National Sub Junior 2019"]
[Site "Tiruchengode"]
[Date "2019.07.11"]
[Round "4.10"]
[White "Raja Rithvik R"]
[Black "Potawad Anirudhha"]
[Result "1-0"]
[ECO "A18"]
[WhiteElo "2357"]
[BlackElo "1830"]
[Annotator "ChessBase"]
[PlyCount "55"]
[EventDate "2019.07.09"]
[EventCountry "IND"]
[SourceTitle "playchess.com"]
[Source "ChessBase"]
[SourceQuality "1"]
[TimeControl "5400+30"]

1. c4 {[%emt 0:00:00]} Nf6 {[%emt 0:00:00]} 2. Nc3 {[%emt 0:00:00]} e6 {[%emt 0:00:12]} 3. e4 {[%emt 0:00:09]} d5 {[%emt 0:00:54]} 4. e5 {[%emt 0:00:05]} d4 {[%emt 0:00:49]} 5. exf6 {[%emt 0:00:05]} dxc3 {[%emt 0:00:03]} 6. bxc3 {[%emt 0:00:04]} Qxf6 {[%emt 0:02:08]} 7. d4 {[%emt 0:00:04]} Bd6 {[%emt 0:02:07]} 8. Nf3 {[%emt 0:00:51]} h6 {[%emt 0:01:21]} 9. Bd3 {[%emt 0:00:50]} Nd7 {[%emt 0:04:47]} 10. O-O {[%emt 0:04:18]} O-O {[%emt 0:03:33]} 11. Qe2 {[%emt 0:00:48]} Re8 {[%emt 0:05:43]} 12. Qe4 {[%emt 0:01:28]} Nf8 {[%emt 0:02:42]} 13. c5 {[%emt 0:00:51]} Be7 {[%emt 0:00:16]} 14. Bf4 {[%emt 0:11:32]} Bd7 {[%emt 0:10:02]} 15. Ne5 {[%emt 0:15:07]} Rad8 {[%emt 0:09:13]} 16. Nxd7 {[%emt 0:10:47]} Rxd7 {[%emt 0:00:08]} 17. Be5 {[%emt 0:00:03]} Qg6 {[%emt 0:07:36]} 18. Qf3 {[%emt 0:00:09]} Qg5 {[%emt 0:04:23]} 19. Qxb7 {[%emt 0:00:30]} Bxc5 {[%emt 0:01:46]} 20. Bb5 {[%emt 0:01:16]} c6 {[%emt 0:01:53]} 21. Qxc6 {[%emt 0:00:09]} Be7 {[%emt 0:04:55]} 22. Qf3 {[%emt 0:00:51]} Red8 {[%emt 0:01:54]} 23. Bxd7 {[%emt 0:00:07]} Rxd7 {[%emt 0:00:04]} 24. Rab1 {[%emt 0:00:25]} Qd2 {[%emt 0:00:36]} 25. a4 {[%emt 0:01:03]} Qc2 {[%emt 0:00:30]} 26. Qc6 {[%emt 0:00:29]} f6 {[%emt 0:01:25]} 27. Rb8 {[%emt 0:00:38]} Bd8 {[%emt 0:00:43]} 28. Bd6 {[%emt 0:00:06]} 1-0

[Event "45th National Sub Junior 2019"]
[Site "Tiruchengode"]
[Date "2019.07.12"]
[Round "5.1"]
[White "Nikhil Magizhnan"]
[Black "Rohith Krishna S"]
[Result "1/2-1/2"]
[ECO "C69"]
[WhiteElo "2164"]
[BlackElo "2312"]
[Annotator "NA"]
[PlyCount "50"]
[EventDate "2019.07.09"]
[EventCountry "IND"]
[SourceTitle "playchess.com"]
[Source "ChessBase"]
[SourceQuality "1"]
[TimeControl "5400+30"]

1. e4 {[%emt 0:00:00]} e5 {[%emt 0:00:31]} 2. Nf3 {[%emt 0:00:00]} Nc6 {[%emt 0:00:04]} 3. Bb5 {[%emt 0:00:03]} a6 {[%emt 0:00:10]} 4. Bxc6 {[%emt 0:00:12]} dxc6 {[%emt 0:00:05]} 5. O-O {[%emt 0:00:27]} f6 {[%emt 0:04:43]} 6. d4 {[%emt 0:00:10]} exd4 {[%emt 0:00:06]} 7. Nxd4 {[%emt 0:00:25]} c5 {[%emt 0:00:05]} 8. Nb3 {[%emt 0:00:19]} Qxd1 {[%emt 0:00:26]} 9. Rxd1 {[%emt 0:00:03]} Bd6 {[%emt 0:03:10]} 10. a4 {[%emt 0:04:56]} Be6 {[%emt 0:08:53]} 11. Be3 {[%emt 0:02:25]} Bxb3 {[%emt 0:02:03]} 12. cxb3 {[%emt 0:00:06]} O-O-O {[%emt 0:00:19]} 13. Na3 {[%emt 0:01:16]} Ne7 {[%emt 0:02:31]} 14. Nc4 {[%emt 0:10:16]} Nc6 {[%emt 0:00:17]} 15. Rac1 {[%emt 0:01:44]} Rhe8 {[%emt 0:12:25]} 16. f3 {[%emt 0:01:50]} Bf8 {[%emt 0:00:57]} 17. Kf2 {[%emt 0:08:00]} Rxd1 {[%emt 0:07:24]} 18. Rxd1 {[%emt 0:00:16]} Rd8 {[%emt 0:00:05]} 19. Rc1 {[%emt 0:01:41]} Kd7 {[%emt 0:07:59]} 20. Ke2 {[%emt 0:03:39]} Ke6 {[%emt 0:01:44]} 21. Bf2 {[%emt 0:03:22]} Rd7 {[%emt 0:04:00]} 22. Be3 {[%emt 0:01:53]} Rd8 {[%emt 0:09:37]} 23. Bf2 {[%emt 0:00:56]} Rd7 {[%emt 0:05:09]} 24. Be3 {[%emt 0:00:17]} Rd8 {[%emt 0:00:03]} 25. Bf2 {[%emt 0:00:53]} Rd7 {[%emt 0:00:04]} 1/2-1/2

[Event "45th National Sub Junior 2019"]
[Site "Tiruchengode"]
[Date "2019.07.12"]
[Round "5.2"]
[White "Aaryan Varshney"]
[Black "Sanket Chakravarty"]
[Result "1/2-1/2"]
[ECO "E99"]
[WhiteElo "2284"]
[BlackElo "2107"]
[Annotator "NA"]
[PlyCount "60"]
[EventDate "2019.07.09"]
[EventCountry "IND"]
[SourceTitle "playchess.com"]
[Source "ChessBase"]
[SourceQuality "1"]
[TimeControl "5400+30"]

1. d4 {[%emt 0:00:00]} Nf6 {[%emt 0:00:00]} 2. Nf3 {[%emt 0:00:00]} g6 {[%emt 0:00:00]} 3. c4 {[%emt 0:00:00]} Bg7 {[%emt 0:00:00]} 4. Nc3 {[%emt 0:00:00]} d6 {[%emt 0:00:00]} 5. e4 {[%emt 0:00:00]} O-O {[%emt 0:00:04]} 6. Be2 {[%emt 0:00:00]} e5 {[%emt 0:00:12]} 7. O-O {[%emt 0:00:00]} Nc6 {[%emt 0:00:12]} 8. d5 {[%emt 0:00:00]} Ne7 {[%emt 0:00:05]} 9. Ne1 {[%emt 0:00:00]} Nd7 {[%emt 0:00:22]} 10. Be3 {[%emt 0:00:22]} f5 {[%emt 0:00:16]} 11. f3 {[%emt 0:00:04]} f4 {[%emt 0:00:05]} 12. Bf2 {[%emt 0:00:02]} g5 {[%emt 0:00:15]} 13. Nd3 {[%emt 0:00:04]} Nf6 {[%emt 0:01:04]} 14. c5 {[%emt 0:00:04]} Ng6 {[%emt 0:00:37]} 15. Rc1 {[%emt 0:00:10]} Rf7 {[%emt 0:01:04]} 16. cxd6 {[%emt 0:00:12]} cxd6 {[%emt 0:00:06]} 17. a4 {[%emt 0:00:03]} h5 {[%emt 0:05:28]} 18. Nb5 {[%emt 0:00:11]} g4 {[%emt 0:07:16]} 19. a5 {[%emt 0:00:14]} g3 {[%emt 0:00:52]} 20. hxg3 {[%emt 0:00:11]} fxg3 {[%emt 0:00:05]} 21. Bxg3 {[%emt 0:00:05]} Bh6 {[%emt 0:00:05]} 22. Bf2 {[%emt 0:00:55]} Rg7 {[%emt 0:07:12]} 23. Re1 {[%emt 0:14:49]} h4 {[%emt 0:17:31]} 24. Nxa7 {[%emt 0:10:34]} Bxc1 {[%emt 0:01:17]} 25. Qxc1 {[%emt 0:01:00]} Nh5 {[%emt 0:00:57]} 26. Bb6 {[%emt 0:03:08]} Qd7 {[%emt 0:01:55]} 27. Nf2 {[%emt 0:01:49]} Ngf4 {[%emt 0:04:19]} 28. Ng4 {[%emt 0:00:49]} Rxg4 {[%emt 0:01:10]} 29. fxg4 {[%emt 0:00:32]} Nxe2+ {[%emt 0:00:04]} 30. Rxe2 {[%emt 0:00:06]} Qxg4 {[%emt 0:52:27]} 1/2-1/2

[Event "45th National Sub Junior 2019"]
[Site "Tiruchengode"]
[Date "2019.07.12"]
[Round "5.3"]
[White "Srihari, L."]
[Black "Raja Rithvik R"]
[Result "0-1"]
[ECO "C54"]
[WhiteElo "2077"]
[BlackElo "2357"]
[Annotator "ChessBase"]
[PlyCount "80"]
[EventDate "2019.07.09"]
[EventCountry "IND"]
[SourceTitle "playchess.com"]
[Source "ChessBase"]
[SourceQuality "1"]
[TimeControl "5400+30"]

1. e4 {[%emt 0:00:00]} e5 {[%emt 0:00:00]} 2. Nf3 {[%emt 0:00:00]} Nc6 {[%emt 0:00:00]} 3. Bc4 {[%emt 0:00:00]} Bc5 {[%emt 0:00:00]} 4. c3 {[%emt 0:00:05]} Nf6 {[%emt 0:00:06]} 5. d3 {[%emt 0:00:12]} O-O {[%emt 0:00:09]} 6. O-O {[%emt 0:00:42]} d5 {[%emt 0:00:08]} 7. exd5 {[%emt 0:00:14]} Nxd5 {[%emt 0:00:05]} 8. Nbd2 {[%emt 0:01:46]} Nb6 {[%emt 0:00:14]} 9. Ne4 {[%emt 0:01:05]} Nxc4 {[%emt 0:05:36]} 10. Nxc5 {[%emt 0:01:07]} Nd6 {[%emt 0:10:43]} 11. h3 {[%emt 0:04:06]} b6 {[%emt 0:09:13]} 12. Ne4 {[%emt 0:09:15]} Bb7 {[%emt 0:05:38]} 13. Re1 {[%emt 0:11:07]} Re8 {[%emt 0:05:59]} 14. b3 {[%emt 0:16:32]} f5 {[%emt 0:07:16]} 15. Ng3 {[%emt 0:01:48]} Qd7 {[%emt 0:01:26]} 16. Bb2 {[%emt 0:01:53]} Rad8 {[%emt 0:04:51]} 17. Qc2 {[%emt 0:11:20]} Nf7 {[%emt 0:14:17]} 18. Rad1 {[%emt 0:01:30]} a5 {[%emt 0:02:44]} 19. a3 {[%emt 0:01:29]} Na7 {[%emt 0:04:15]} 20. Qe2 {[%emt 0:03:24]} c5 {[%emt 0:01:14]} 21. c4 {[%emt 0:03:02]} Nc6 {[%emt 0:00:13]} 22. Kh2 {[%emt 0:05:09]} g6 {[%emt 0:03:41]} 23. Bc1 {[%emt 0:06:07]} Re6 {[%emt 0:01:18]} 24. Bb2 {[%emt 0:05:01]} Rde8 {[%emt 0:00:59]} 25. Qd2 {[%emt 0:00:43]} Nd4 {[%emt 0:06:22]} 26. Nxd4 {[%emt 0:00:09]} exd4 {[%emt 0:00:09]} 27. Kg1 {[%emt 0:03:42]} Qc6 {[%emt 0:03:23]} 28. f3 {[%emt 0:00:34]} Ne5 {[%emt 0:01:39]} 29. Rf1 {[%emt 0:02:24]} Qc7 {[%emt 0:00:27]} 30. Kf2 {[%emt 0:01:11]} Nxf3 {[%emt 0:06:16]} 31. gxf3 {[%emt 0:00:40]} Re3 {[%emt 0:00:44]} 32. Kg2 {[%emt 0:01:30]} Qf4 {[%emt 0:00:48]} 33. Rf2 {[%emt 0:01:51]} h5 {[%emt 0:03:47]} 34. Nf1 {[%emt 0:03:47]} Bxf3+ {[%emt 0:00:30]} 35. Kg1 {[%emt 0:00:01]} Qg5+ {[%emt 0:00:59]} 36. Kh2 {[%emt 0:00:04]} Bxd1 {[%emt 0:01:04]} 37. Qxd1 {[%emt 0:01:30]} Qh4 {[%emt 0:00:14]} 38. Nxe3 {[%emt 0:01:05]} Qxf2+ {[%emt 0:00:08]} 39. Ng2 {[%emt 0:00:03]} Re2 {[%emt 0:00:12]} 40. Qg1 {[%emt 0:00:16]} Rxb2 {[%emt 0:00:24]} 0-1